Cogmind - Beta 16 @@@ ROGUE MODE // 2025.11.02 @ 19:41:10 Player: MrJoe Result: Destroyed by as-81227 with Assembled Blade Performance ------------- Evolutions (1) 500 Regions Visited (3) 600 Robots Destroyed (17) 85 Value Destroyed (363) 363 Prototype IDs (0) 0 Alien Tech Used (0) 0 Bonus (0) 0 TOTAL SCORE: 1548 Bonus ------- None Cogmind --------- Core Integrity 0/400 Matter 245/300 Energy 125/125 System Corruption 0% Temperature Cool (1) Movement Flying (195) Ox2 Location -9/Mines Parts ------- > --- POWER (1) -------- Light Ion Engine > --- PROPULSION (2) --- Cesium-ion Thruster > --- UTILITY (4) ------ Small Storage Unit Target Analyzer Target Analyzer Utility Shielding > --- WEAPON (2) ------- Heavy Mace Heavy Mace > --- INVENTORY (8) ---- Cesium-ion Thruster Small Matter Pod (50) Salvage Targeting Computer Light Assault Rifle Peak State ------------ > --- POWER ------------ Ion Engine > --- PROPULSION ------- Cesium-ion Thruster Cesium-ion Thruster > --- UTILITY ---------- Small Storage Unit Target Analyzer Target Analyzer Target Analyzer > --- WEAPON ----------- Heavy Mace Heavy Mace > --- INVENTORY -------- Light Ion Engine Light Treads Light Treads Cesium-ion Thruster Target Analyzer Grenade Launcher Heavy Mace Heavy Mace [Rating: 24] Favorites ----------- Power Ion Engine Engine Ion Engine Propulsion Cesium-ion Thruster Treads Light Treads Flight Unit Cesium-ion Thruster Utility Target Analyzer Storage Small Storage Unit Processor Target Analyzer Protection Utility Shielding Weapon Heavy Mace Energy Gun Medium Laser Launcher Grenade Launcher Impact Weapon Heavy Mace Build | -11 -10 -9 -9 ------- Run | Yrd Mat Mat Min Slots Evolved 2 | . . 2 . Power . | . . . . Propulsion . | . . . . Utility 2 | . . 2 . Weapon . | . . . . Parts Attached 18 | 7 . 9 2 Power 2 | 2 . . . Engine 2 | 2 . . . Core . | . . . . Reactor . | . . . . Propulsion 5 | 2 . 3 . Treads 2 | 2 . . . Leg . | . . . . Wheel . | . . . . Hover . | . . . . Flight 3 | . . 3 . Utility 5 | 1 . 4 . Device . | . . . . Storage 1 | 1 . . . Processor 3 | . . 3 . Hackware . | . . . . Protection 1 | . . 1 . Artifact . | . . . . Weapon 6 | 2 . 2 2 Energy Gun 2 | 2 . . . Energy Cannon . | . . . . Ballistic Gun . | . . . . Ballistic Cannon . | . . . . Launcher 1 | . . . 1 Special Weapon . | . . . . Impact Weapon 3 | . . 2 1 Slashing Weapon . | . . . . Piercing Weapon . | . . . . Special Melee Weapon . | . . . . Unidentified Prototypes . | . . . . Parts Lost 4 | . . 2 2 Power 1 | . . 1 . Propulsion 2 | . . 1 1 Utility . | . . . . Weapon 1 | . . . 1 Highest Loss Streak 2 | . . 2 2 To Critical Strikes . | . . . . Average Backups 5 | 1 2 7 5 Power . | . 1 1 . Propulsion . | . . 1 1 Utility . | . . 1 2 Weapon 2 | . 1 3 2 Tool/Special . | . . . . Unused Backups 7 | . . 3 4 Power . | . . . . Propulsion 1 | . . . 1 Utility 4 | . . 2 2 Weapon 2 | . . 1 1 Tool/Special . | . . . . Average Slot Usage (%) 90 | . 85 92 97 Engine 11 | . 14 9 11 Treads 10 | . 28 4 . Flight 12 | . . 17 19 Storage 11 | . 14 11 11 Processor 14 | . . 20 22 Protection 5 | . . 7 11 Energy Gun 9 | . 28 2 . Impact Weapon 13 | . . 19 12 Peak Build Rating 24 | 6 6 24 22 Average Rating 14 | 5 6 19 19 On Entrance 8 | . 6 6 21 Avg Prop Armor Cover (%) . | . . . . Naked Turns . | . . . . Heaviest Build 17 | 13 13 17 15 Greatest Support 40 | 40 40 40 10 Greatest Overweight (x) 2 | . . 2 2 Average Overweight (x) . | . . . 1 Largest Inventory Capacity 8 | 8 8 8 8 Average Capacity 7 | 7 8 8 8 Most Carried 8 | 2 3 8 6 Average Carried 5 | 1 2 7 5 Final Capacity 8 | 8 8 8 8 Final Carried 7 | 2 3 7 4 Class Distribution -------------------- 100% | Mutant Dominant Class ---------------- Mutant | -10/Materials Mutant | -9/Materials Mutant | -9/Mines Resources | -11 -10 -9 -9 ----------- Run | Yrd Mat Mat Min Matter Collected 430 | 247 23 130 30 Remotely . | . . . . Salvage Created 535 | . 158 344 33 Parts 20 | . 12 8 . Haulers Intercepted . | . . . . Recyclers Shooed . | . . . . Parts Field Recycled . | . . . . Retrieved Matter . | . . . . Parts Self-Destructed . | . . . . Prevented . | . . . . Parts Restored . | . . . . Kills | -11 -10 -9 -9 ------- Run | Yrd Mat Mat Min Combat Hostiles Destroyed 21 | . 4 9 8 Melee 5 | . . 3 2 Guns 5 | . 4 1 . AOE 6 | . . . 6 Classes Destroyed 7 | . 1 5 1 Recycler 1 | . . 1 . Operator 1 | . . 1 . Watcher 2 | . . 2 . Swarmer 6 | . . 6 . Grunt 6 | . 4 2 . Sentry 1 | . . 1 . Assembled 8 | . . . 8 Best Kill Streak 8 | . 2 4 8 Combat Bots Only 8 | . 2 4 8 Max Kills in Single Turn 3 | . 1 1 3 Gunslinging . | . . . . Exploded 3 | . . . 3 Melee 1 | . . 1 1 Uniques/NPCs Destroyed . | . . . . Combat | -11 -10 -9 -9 -------- Run | Yrd Mat Mat Min Hostile Shots Fired 139 | . 18 96 25 Missed 35 | . 4 24 7 Hits 104 | . 14 72 18 Melee 4 | . . . 4 Projectile 100 | . 14 72 14 Critical Strikes 2 | . . 1 1 Damage Taken 1127 | . 152 667 308 Core 448 | . 33 282 133 Absorbed by Shields . | . . . . Redirected to Shielding 41 | . . 28 13 Core Remaining (%) 93 | 100 86 . . Volleys Fired 30 | . 21 4 5 Largest 2 | . 2 2 1 Hottest 90 | . 90 90 30 Shots Fired 55 | . 42 8 5 Gun 50 | . 42 8 . Cannon . | . . . . Launcher 5 | . . . 5 Special . | . . . . Kinetic . | . . . . Thermal 50 | . 42 8 . Explosive 5 | . . . 5 Electromagnetic . | . . . . Robot Hit Streak 5 | . 5 2 3 Robot Miss Streak 4 | . 3 4 . Penetration Max . | . . . . Secondary Targets . | . . . . Shots Hit Robots 36 | . 13 20 3 Core Hits 36 | . 9 4 23 Critical Kills 1 | . . 1 . Critical Parts Destroyed 4 | . . 4 . Critical Strikes 6 | . 1 5 . Burn 1 | . 1 . . Smash 5 | . . 5 . Melee Attacks 36 | . . 30 6 Impact 36 | . . 30 6 Slashing . | . . . . Piercing . | . . . . Sneak Attacks 2 | . . 2 . Combat Hostiles . | . . . . Follow-up Attacks 7 | . . 7 . Damage Inflicted 1598 | . 182 828 588 Guns 219 | . 182 37 . Cannons . | . . . . Explosions 500 | . . . 500 Melee 879 | . . 791 88 Ramming . | . . . . Kinetic . | . . . . Thermal 219 | . 182 37 . Explosive 500 | . . . 500 Electromagnetic . | . . . . Impact 879 | . . 791 88 Slashing . | . . . . Piercing . | . . . . Highest Corruption 3 | . 3 . . Average Corruption 2 | . 2 . . Corruption Purged . | . . . . Corruption Blocked . | . . . . Overload Shots . | . . . . Overflow Damage 330 | . . 326 4 Projectiles . | . . . . Explosions 4 | . . . 4 Melee 326 | . . 326 . Knockbacks 1 | . . 1 . Impact 1 | . . 1 . Kinetic . | . . . . Secondary . | . . . . Self-Inflicted Damage . | . . . . Shots . | . . . . Rammed . | . . . . Targets Rammed . | . . . . Kicked . | . . . . Crushed . | . . . . Highest Temperature 300 | . 300 48 39 Average Temperature 87 | . 102 23 14 Received Heat Transfer 298 | . 84 114 100 Effects 1 | . 1 . . Energy Bleed 1 | . 1 . . Siege Activations . | . . . . Martial Activations . | . . . . Shielding Activations . | . . . . Robots Disrupted . | . . . . Combat Hostiles . | . . . . Robots Corrupted 7 | . . 7 . Combat Hostiles 5 | . . 5 . Parts Fried 13 | . . 13 . Impact Corruptions 16 | . . 16 . Robots Melted . | . . . . Combat Hostiles . | . . . . Parts Melted . | . . . . Heat Transferred 656 | . 557 99 . Parts Sabotaged . | . . . . Parts Stolen . | . . . . Parts Stripped . | . . . . Power Chain Reactions . | . . . . Alert | -11 -10 -9 -9 ------- Run | Yrd Mat Mat Min Maximum Alert Level . | . . . . Low Security (%) 100 | 100 100 100 100 Level 1 . | . . . . Level 2 . | . . . . Level 3 . | . . . . Level 4 . | . . . . Level 5 . | . . . . High Security . | . . . . Max Security . | . . . . Peak Influence 131 | . 70 131 47 Initial 47 | . . . 47 Average 19 | . 18 20 26 Influence Increases 385 | . 100 264 21 Destroy 0b10 Robot/C 260 | . 80 180 . Destroy 0b10 Robot/NC 20 | . . 20 . Destroy Leader 54 | . 20 34 . Destroy Structure 21 | . . . 21 Lose Combat Pursuer 30 | . . 30 . Influence Decreases 384 | . 100 142 142 Entered New Map 75 | . . . 75 Time Decay 272 | . 100 122 50 Lost Part 37 | . . 20 17 Squads Dispatched 4 | . 3 1 . Investigation 2 | . 1 1 . Extermination . | . . . . Reinforcement 2 | . 2 . . Assault . | . . . . Garrison . | . . . . Intercept . | . . . . Searches Triggered . | . . . . Construction Impeded . | . . . . Haulers Reinforced . | . . . . Active Scanning Responses . | . . . . Cargo Convoy Interrupts . | . . . . Stealth | -11 -10 -9 -9 --------- Run | Yrd Mat Mat Min Distress Signals 2 | . 1 1 . Communications Jammed . | . . . . Distress Signals . | . . . . Times Spotted 37 | . 5 18 14 Peak Tracking Total 11 | . 3 5 11 Tactical Retreats 2 | . . 2 . Traps | -11 -10 -9 -9 ------- Run | Yrd Mat Mat Min Traps Triggered 2 | . 2 . . Indirectly . | . . . . Trap Hack Attempts . | . . . . Triggered . | . . . . Disarmed . | . . . . Reprogrammed . | . . . . Reused . | . . . . Traps Extracted . | . . . . Installed . | . . . . Triggered . | . . . . Machines | -11 -10 -9 -9 ---------- Run | Yrd Mat Mat Min Machines Disabled . | . . . . Max in Single Turn . | . . . . Machines Repaired . | . . . . Machines Dismantled . | . . . . Machines Sabotaged . | . . . . Overloaded Fab Kills . | . . . . Hacking | -11 -10 -9 -9 --------- Run | Yrd Mat Mat Min Machines Accessed 2 | . 1 1 . Terminals 2 | . 1 1 . Fabricators . | . . . . Repair Stations . | . . . . Recycling Units . | . . . . Scanalyzers . | . . . . Garrison Access . | . . . . Total Hacks 6 | . 3 3 . Successful 5 | . 2 3 . Failed 1 | . 1 . . Catastrophic . | . . . . Database Lockouts . | . . . . Manual . | . . . . Terminals 6 | . 3 3 . Fabricators . | . . . . Repair Stations . | . . . . Recycling Units . | . . . . Scanalyzers . | . . . . Garrison Access . | . . . . Terminal Hacks 5 | . 2 3 . Record 4 | . 1 3 . Zone Layout 1 | . 1 . . Fabricator Hacks . | . . . . Repair Station Hacks . | . . . . Recycling Unit Hacks . | . . . . Scanalyzer . | . . . . Garrison Access Hacks . | . . . . Unauthorized Hacks . | . . . . Terminals . | . . . . Fabricators . | . . . . Repair Stations . | . . . . Recycling Units . | . . . . Scanalyzers . | . . . . Garrison Access . | . . . . Data Cores Recovered . | . . . . Used . | . . . . Hacking Detections 2 | . 1 1 . Full Trace Events 2 | . 1 1 . Feedback Events . | . . . . Feedback Blocked . | . . . . Robot Schematics Acquired . | . . . . Robots Built . | . . . . Authchips . | . . . . Time . | . . . . Total Robot Build Rating . | . . . . Part Schematics Acquired . | . . . . Parts Built . | . . . . Authchips . | . . . . Time . | . . . . Total Part Build Rating . | . . . . Part Studies Acquired . | . . . . Parts Repaired . | . . . . Time . | . . . . Parts Recycled . | . . . . Recycled Matter . | . . . . Retrieved Matter . | . . . . Retrieved Components . | . . . . Parts Scanalyzed . | . . . . Part Schematics Acquired . | . . . . Parts Damaged . | . . . . Bothacking | -11 -10 -9 -9 ------------ Run | Yrd Mat Mat Min Used RIF Installer . | . . . . Robots Hacked . | . . . . Non-combat . | . . . . Combat . | . . . . Robot Hacks Applied . | . . . . Relay Couplers Released . | . . . . Fabnet Peak Effective % . | . . . . Robots Rewired . | . . . . Allies Hacked . | . . . . Hacks Repelled . | . . . . Allies | -11 -10 -9 -9 -------- Run | Yrd Mat Mat Min Total Allies . | . . . . Largest Group . | . . . . Highest-Rated Group . | . . . . Highest-Rated Ally . | . . . . Total Orders . | . . . . Ally Attacks . | . . . . Total Damage . | . . . . Kills . | . . . . Allies Corrupted . | . . . . Allies Melted . | . . . . Intel | -11 -10 -9 -9 ------- Run | Yrd Mat Mat Min Active Infowar (turns) . | . . . . Robot Analysis Total . | . . . . Derelict Logs Recovered . | . . . . Drone Launches . | . . . . Drone Recoveries . | . . . . Exploration | -11 -10 -9 -9 ------------- Run | Yrd Mat Mat Min Turns Passed 1261 | 86 332 736 107 Spaces Moved 797 | 50 159 527 61 Core 4 | 4 . . . Treads 276 | 46 159 71 . Legs . | . . . . Wheels . | . . . . Hover . | . . . . Flight 517 | . . 456 61 Fastest Speed 50 | 50 160 112 112 Average Speed 129 | 151 160 119 116 Slowest Speed 195 | 160 160 195 195 Overloaded Moves . | . . . . Propulsion Burnouts . | . . . . Robots Hopped . | . . . . Potential Cave-ins . | . . . . Cave-ins Triggered . | . . . . Exploration Rate (%) 23 | 4 29 44 15 Regions Visited 3 Branch Regions 1 Pre-discovered Areas . | . . . . Known Exits Taken . | . . . . Unknown Exits Taken 3 | 1 1 1 . Scrap Searched 1 | . . . 1 Spaces Dug . | . . . . Terrain Destroyed 42 | . . . 42 Melee . | . . . . Projectile . | . . . . AOE 42 | . . . 42 Terrain Rammed . | . . . . Walls Destroyed . | . . . . Machines Disabled . | . . . . Actions | -11 -10 -9 -9 --------- Run | Yrd Mat Mat Min Total 920 | 57 195 585 83 Wait 23 | . 15 1 7 Move 794 | 49 158 526 61 Hop . | . . . . Pick Up 16 | 1 1 14 . Fast Attach 10 | 6 . 4 . Attach 3 | . . 1 2 Detach 1 | . . 1 . Swap 6 | 1 . 4 1 Drop 10 | . . 9 1 Fire 30 | . 21 4 5 Melee 27 | . . 21 6 Ram . | . . . . Kick . | . . . . Crush . | . . . . Escape Stasis . | . . . . Rewire . | . . . . Trap . | . . . . Miscellaneous . | . . . . Route ------- -11/Scrapyard -10/Materials -9/Materials -9/Mines History --------- Turn | Location | Event 16 | -11/Scrapyard | Discovered new exit (range 16) 87 | -11/Scrapyard | Entered Materials 88 | -10/Materials | Met a group of wandering Federalists 303 | -10/Materials | Discovered new exit (range 15) 316 | -10/Materials | Build established: Mutant 419 | -10/Materials | Entered another Materials area 419 | -9/Materials | Evolved 2 slots: Utility x2 1120 | -9/Materials | Discovered new exit (range 16) 1123 | -9/Materials | Core integrity fell below 50% 1155 | -9/Materials | Entered Mines 1194 | -9/Mines | Assembled infested the area 1199 | -9/Mines | Assisted by a Guerilla fighting off Assembled 1248 | -9/Mines | Core integrity fell below 20% 1262 | -9/Mines | Destroyed by as-81227 with Assembled Blade Last Messages --------------- 01239_ as-89808 suffers critical hit (Destroy). 01239_ as-89808 destroyed. 01242_ as-81126 destroyed. 01243_ The unstable cave ceiling collapses. 01244_ as-98480 destroyed. 01244_ Destroyed Asb. F-torch. 01244_ as-14186 destroyed. 01244_ Destroyed Asb. Hover Unit. 01244_ as-66181 destroyed. 01244_ HV Slug penetrates as-81227. 01244_ as-81227 suffers critical hit (Destroy). 01244_ as-81227 knocked back. 01244_ HV Slug penetrates as-42227. 01244_ as-42227 suffers critical hit (Destroy). 01244_ as-42227 destroyed. 01245_ SV-HE2(h) destroyed. 01248_ as-44395 destroyed. 01249_ The unstable cave ceiling collapses. 01255_ Grenade Launcher destroyed. 01259_ as-69618 destroyed. Map ----- +----------------------------------------------------+ | | | | | | | | | | | | | | | | | | | | | | | | | | | | | | | | | | | | | | | | | | | | | ?????????????###?? #####???????????? | | ???????????## # #???????????? | | ??????????## #???????????? | | ??????????#!@ # #???????????? | | ??????????#% aa #???????????? | | ?????????##% #???????????? | | ?????????#; # #???????????? | | ?????????#;% #### < #???????????? | | ??????####;% #???? # ##???????????? | | ??????# #????? ##??????????????? | | ??????# #??????#???????????????? | | ??????# ######??????????????????????? | | ??????# #???????????????????????????? | | ??????# #???????????????????????????? | | ?????## #???????????????????????????? | | ????## ##??????????????????????????? | | ????# ##?????????????????????????? | | ???## #?????????????????????????? | | ???# #?????????????????????????? | | ???# ##?????????????????????????? | | ???## ##??????????????????????????? | | ????# ##??????????????????????????? | | ????# ##?????????????????????????? | | ????# ###???????????????????????? | | ????# ##??????????????????????? | | ????## ##?????????????????????? | | ?????## #?????????????????????? | | ??????# #?????????????????????? | +----------------------------------------------------+ Best States ------------- Heat Dissipation 28 Energy Generation 10 Energy Capacity 250 Matter Stores 300 Matter Capacity 300 Sight Range 16 Terrain Scan Density 10 Utility Shielding 33 Evasion (%) 40 Target Analysis 7 Recoil Reduction 2 Item Schematics ----------------- None Robot Schematics ------------------ None Fabricated ------------ Nothing Repaired ---------- Nothing Studied --------- None Alien Tech Used ----------------- None Achievements -------------- None Challenges ------------ None Game ------ Seed SupersonicDispersalFragment Manual? 0 Play Time 00:13:34 Cumulative 15.7 hours Start 2025.11.02 @ 19:29:25 End 2025.11.02 @ 19:41:10 Sessions 1 Manual Loads 0 Difficulty Rogue Special Mode None Game No. 21 Rogue 18 Adventurer 3 Explorer 0 Win Type - Total 0 Types 0/0/0/0/0/0/0/0/0/0 Lore% 15 Gallery% 16 Achievement% 12 Wizard Run 0 Options --------- Layout 1 ASCII 0 Keyboard 1 Movement Vi Keybinds 0 Fullscreen 1 Font 24/Smallcaps Map View 50x35 Zoom Use 0% Tactical HUD 1 Map Filters NONE Filters NONE Steam 1 RUN: 55ae6bdd-49c3-4cce-bdc6-c2535ac2523c